fUST/lending_fUST_20240210
["ID","MTS","AMOUNT","RATE_DAILY","PERIOD"]
[313632831,1707502241544,-500.0,0.00024857,2]
[313632832,1707502241554,-500.0,0.00024876,2]
[313632833,1707502241563,-500.0,0.00024876,2]
[313632834,1707502241572,-500.0,0.00024876,2]
[313632835,1707502241581,-500.0,0.00024876,2]
[313632836,1707502241590,-6464.22,0.00024876,2]
[313632837,1707502241599,-500.0,0.00024966,2]
[313632838,1707502241608,-694.64,0.00024966,2]
[313632839,1707502241617,-500.0,0.00024966,2]
[313632840,1707502241626,-258.09867433,0.00024966,2]
[313632841,1707502241636,-500.0,0.00024966,2]
[313632842,1707502241646,-309.26607158,0.00024966,2]
[313632843,1707502241656,-500.0,0.00024986,2]
[313632844,1707502241666,-500.0,0.00024986,2]
[313632845,1707502241675,-584.11336849,0.00024986,2]
[313632846,1707502241683,-500.0,0.00024986,2]
[313632847,1707502241693,-6464.22,0.00024986,2]
[313632848,1707502241704,-500.0,0.00024989,2]
[313632849,1707502241714,-500.0,0.00024989,2]
[313632850,1707502241723,-500.0,0.00024989,2]
[313632851,1707502241733,-500.0,0.00024989,2]
[313632852,1707502241742,-500.0,0.00024989,2]
[313632853,1707502241751,-291.84089038,0.00024989,2]
[313632854,1707502241761,-500.0,0.00024989,2]
[313632855,1707502241770,-587.20866199,0.00024989,2]
[313632856,1707502241781,-581.03170627,0.00024989,2]
[313632857,1707502241791,-500.0,0.00024989,2]
[313632858,1707502241801,-500.0,0.00024989,2]
[313632859,1707502241813,-636.62767805,0.00024989,2]
[313632860,1707502241822,-500.0,0.00024989,2]
[313632861,1707502241898,-500.0,0.00024989,2]
[313632862,1707502241908,-335.67869431,0.00025,2]
[313632863,1707502241917,-4074.87511828,0.00025,2]
[313632864,1707502241927,-4412.33424051,0.00025,2]
[313632865,1707502241936,-156.27676135,0.00025,2]
[313632866,1707502241946,-550.33813105,0.00025062,2]
[313632867,1707502241955,-7062.47353951,0.00025063,2]
[313632868,1707502241964,-176.03211544,0.00025063,2]
[313632869,1707502241974,-155.07598723,0.00025064,2]
[313632870,1707502241983,-2110.54162964,0.00025064,2]
[313632871,1707502241992,-155.78078699,0.00025065,2]
[313632872,1707502242002,-2094.656582,0.00025065,2]
[313632873,1707502242011,-518.47717516,0.00025066,2]
[313632874,1707502242020,-537.41517385,0.00025066,2]
[313632875,1707502242029,-500.0,0.00025066,2]
[313632876,1707502242039,-206.49294333,0.00025066,2]
[313632877,1707502242048,-18463.27,0.00025066,2]
[313632878,1707502242057,-2363.57,0.00025066,2]
[313632879,1707502242068,-538.6,0.00025066,2]
[313632880,1707502242078,-500.0,0.00025076,2]
[313632881,1707502242087,-694.64,0.00025076,2]
[313632882,1707502242097,-500.0,0.00025076,2]
[313632883,1707502242107,-500.0,0.00025076,2]
[313632884,1707502242118,-500.0,0.00025095,2]
[313632885,1707502242127,-500.0,0.00025095,2]
[313632886,1707502242138,-500.0,0.00025095,2]
[313632887,1707502242149,-6464.22,0.00025095,2]
[313632888,1707502242158,-500.0,0.00025099,2]
[313632889,1707502242166,-500.0,0.00025099,2]
[313632890,1707502242177,-500.0,0.00025099,2]
[313632891,1707502242187,-420.16421676,0.00025099,2]
[313632892,1707502242196,-500.0,0.00025099,2]
[313632893,1707502242205,-500.0,0.00025099,2]
[313632894,1707502242215,-500.0,0.00025099,2]
[313632895,1707502242224,-618.14307554,0.00025099,2]
[313632896,1707502242233,-513.89308957,0.00025099,2]
[313632897,1707502242243,-209.43690503,0.00025099,2]
[313632898,1707502242252,-500.0,0.00025176,2]
[313632899,1707502242261,-18463.27,0.00025176,2]
[313632900,1707502242270,-2363.57,0.00025176,2]
[313632901,1707502242279,-538.6,0.00025176,2]
[313632902,1707502242288,-500.0,0.00025186,2]
[313632903,1707502242297,-694.64,0.00025186,2]
[313632904,1707502242306,-500.0,0.00025186,2]
[313632905,1707502242316,-500.0,0.00025186,2]
[313632906,1707502242325,-500.0,0.00025205,2]
[313632907,1707502242334,-500.0,0.00025205,2]
[313632908,1707502242343,-500.0,0.00025205,2]
[313632909,1707502242352,-6464.22,0.00025205,2]
[313632910,1707502242362,-500.0,0.00025209,2]
[313632911,1707502242371,-500.0,0.00025209,2]
[313632912,1707502242380,-500.0,0.00025209,2]
[313632913,1707502242389,-500.0,0.00025209,2]
[313632914,1707502242400,-500.0,0.00025209,2]
[313632915,1707502242409,-500.0,0.00025209,2]
[313632916,1707502242418,-500.0,0.00025286,2]
[313632917,1707502242427,-2897.01430243,0.00025286,2]
[313632918,1707502242439,-9841.14588598,0.00025286,2]
[313632919,1707502242451,-5725.10981159,0.00025286,2]
[313632920,1707502242461,-2363.57,0.00025286,2]
[313632921,1707502242470,-538.6,0.00025286,2]
[313632922,1707502242480,-500.0,0.00025295,2]
[313632923,1707502242489,-694.64,0.00025295,2]
[313632924,1707502242498,-500.0,0.00025295,2]
[313632926,1707502242507,-500.0,0.00025295,2]
[313632928,1707502242516,-500.0,0.00025315,2]
[313632931,1707502242525,-23.78265453,0.00025315,2]
[313632958,1707502244091,-3266.13,0.00024979,3]
[313632959,1707502244101,-500.0,0.00025066,2]
[313632960,1707502244110,-500.0,0.00025176,2]
[313632961,1707502244119,-500.0,0.00025286,2]
[313632962,1707502244128,-74.24039825,0.00025315,2]
[313632963,1707502244141,-401.97694722,0.00025315,2]
[313632964,1707502244154,-500.0,0.00025315,2]
[313632965,1707502244164,-6191.38898123,0.00025315,2]
[313632986,1707502253121,-0.84796681,0.00024657,2]
[313632987,1707502253138,-566.20203319,0.00024657,2]
[313632988,1707502253147,-500.0,0.00024747,2]
[313632990,1707502253159,-500.0,0.00024747,2]
[313632992,1707502253169,-510.42471743,0.00024747,2]
[313632994,1707502253178,-154.92253873,0.00024766,2]
[313632997,1707502253189,-567.05,0.00024767,2]
[313633000,1707502253198,-548.98217902,0.00024857,2]
[313633003,1707502253208,-500.0,0.00024857,2]
[313633005,1707502253217,-567.05,0.00024876,2]
[313633007,1707502253226,-505.23460937,0.00024966,2]
[313633008,1707502253235,-567.05,0.00024986,2]
[313633009,1707502253244,-500.0,0.00024989,2]
[313633010,1707502253254,-191.69392226,0.00025095,2]
[313633044,1707502704236,150.92453773,0.0002766,30]
[313633045,1707502704276,150.92453773,0.00027107,120]
[313633075,1707503176563,150.90945433,0.00027115,30]
[313633076,1707503176610,150.90945433,0.00026573,120]
[313633079,1707503253106,-821.00768788,0.00020504,2]
[313633080,1707503253129,-161.35398337,0.00020505,2]
[313633081,1707503253149,-478.62295471,0.00020604,2]
[313633303,1707503439879,-323.84552651,0.00020591,2]
[313633305,1707503439888,-4457.05447349,0.00020592,5]
[313633344,1707503440595,-542.94552651,0.00020592,5]
[313633345,1707503440605,-154.92253873,0.00020593,4]
[313633346,1707503440614,-154.92253873,0.00020593,2]
[313633347,1707503440624,-2045.48652279,0.00020593,2]
[313633348,1707503440633,-11071.88,0.00020594,3]
[313633349,1707503440642,-212.6780741,0.00020594,2]
[313633351,1707503440651,-155.43933431,0.00020594,2]
[313633353,1707503440662,-3757.13220272,0.00020595,2]
[313633354,1707503440671,-300.0,0.00020604,2]
[313633356,1707503440680,-2091.43243292,0.00020604,2]
[313633357,1707503440690,-75381.76533775,0.00020604,2]
[313633361,1707503442045,-67951.08268093,0.00020604,2]
[313633362,1707503442054,-1018.5820408,0.00020626,2]
[313633363,1707503442064,-169.58374,0.00020627,2]
[313633364,1707503442073,-6908.0204384,0.00021085,2]
[313633365,1707503442082,-1114.9970642,0.00021088,2]
[313633366,1707503442091,-981.02470086,0.00021088,2]
[313633367,1707503442101,-200.0,0.0002163,7]
[313633368,1707503442111,-986.01313624,0.00023186,2]
[313633369,1707503442121,-3331.65058421,0.00023197,2]
[313633370,1707503442130,-210.15507116,0.00023331,2]
[313633371,1707503442145,-161.35398337,0.00023333,2]
[313633372,1707503442155,-690.22217903,0.00023431,2]
[313633373,1707503442166,-1533.39223812,0.00023431,2]
[313633374,1707503442233,-6834.30855409,0.00023431,2]
[313633375,1707503442243,-330.4947575,0.00023431,2]
[313633376,1707503442252,-155.02015262,0.00023431,2]
[313633377,1707503442261,-261.77080039,0.00023431,7]
[313633378,1707503442270,-277.18473086,0.00023431,2]
[313633433,1707503446652,-397.67203115,0.00023431,2]
[313633434,1707503446661,-1297.69513983,0.00023431,2]
[313633435,1707503446671,-1032.36645246,0.00023431,3]
[313633436,1707503446681,-719.85189847,0.00023431,2]
[313633437,1707503446691,-609.78077647,0.00023431,2]
[313633438,1707503446701,-5282.62575812,0.00023431,2]
[313633439,1707503446711,-257.25410567,0.00023431,2]
[313633440,1707503446721,-824.38688827,0.00023431,2]
[313633441,1707503446731,-155.52458927,0.00023431,2]
[313633442,1707503446740,-481.56201325,0.00023432,2]
[313633443,1707503446750,-230.10628764,0.00023432,2]
[313633444,1707503446759,-2504.45596176,0.00023432,2]
[313633445,1707503446992,-732.98875651,0.00023431,2]
[313633446,1707503447002,-1154.6611427,0.00023432,2]
[313633447,1707503447055,-2230.66848628,0.00023432,2]
[313633448,1707503447265,-9226.56,0.00020594,3]
[313633449,1707503447274,-10449.65205286,0.00023432,2]
[313633454,1707503447449,-4623.96227494,0.00023432,2]
[313633455,1707503447459,-1637.39100362,0.00023433,2]
[313633456,1707503449213,-24030.71021214,0.00023433,2]
[313633457,1707503449226,-500.3,0.00023433,2]
[313633460,1707503455792,444.93766552,0.00023431,120]
[313633471,1707503475713,2000.0,0.00029,30]
[313633475,1707503507737,247.11301513,0.00029,120]
[313633478,1707503524540,150.92453773,0.0002649,30]
[313633479,1707503524616,150.92453773,0.00025961,120]
[313633480,1707503527664,247.11301513,0.00029,120]
[313633484,1707503543663,247.11301513,0.00029,120]
[313633487,1707503561681,247.11301513,0.00029,120]
[313633496,1707503579675,247.11301513,0.00029,120]
[313633497,1707503580730,4878.081601,0.00027397,120]
[313633502,1707503599882,220.25140175,0.00029,120]
[313633522,1707503735400,674.68602461,0.00029,30]
[313633524,1707503753073,150.92453773,0.0002671,30]
[313633525,1707503753133,150.92453773,0.00026176,120]
[313633565,1707504056059,150.90945433,0.00026937,30]
[313633566,1707504056136,150.90945433,0.00026399,120]
[313633568,1707504082291,3658.5612,0.00027397,120]
[313633633,1707504374715,2000.0,0.00029,30]
[313633649,1707504529826,150.90945433,0.00027171,30]
[313633650,1707504529956,150.90945433,0.00026628,120]
[313633659,1707504556118,-5000.0,0.00020333,5]
[313633660,1707504556138,-232.52505957,0.00020333,2]
[313633661,1707504556158,-8073.21762702,0.00020334,3]
[313633669,1707504562102,-3757.13220272,0.00020332,2]
[313633670,1707504562124,-154.90705577,0.00020332,2]
[313633671,1707504562145,-891.76591531,0.00020332,2]
[313633678,1707504589611,-2719.07889388,0.00020342,5]
[313633682,1707504607387,334.26591447,0.00020331,5]
[313633683,1707504607620,2743.9209,0.00027397,120]
[313633686,1707504608730,-154.90705577,0.0001973,3]
[313633687,1707504621531,154.90705577,0.00018298,3]
[313633688,1707504625637,-5000.0,0.00020323,3]
[313633766,1707504635525,154.90705577,0.00018298,3]
[313633876,1707504646008,-154.90705577,0.00019729,2]
[313633878,1707504646017,-154.90705577,0.00019729,2]
[313633879,1707504646027,-640.61124371,0.0001973,2]
[313633880,1707504646036,-261.94560961,0.0001973,2]
[313633882,1707504646046,-3616.24903514,0.00019731,2]
[313633927,1707504657534,154.90705577,0.00017998,3]
[313633930,1707504677543,154.90705577,0.00017998,3]
[313633933,1707504695542,154.90705577,0.00017998,3]
[313633963,1707504717542,154.90705577,0.00017754,3]
[313633988,1707504735552,154.92253873,0.00017998,3]
[313634005,1707504753551,154.92253873,0.00017754,3]
[313634013,1707504764853,10241.48088039,0.00017998,2]
[313634017,1707504769634,154.92253873,0.00017743,3]
[313634026,1707504791551,154.92253873,0.00017743,3]
[313634034,1707504809554,154.92253873,0.00017743,3]
[313634044,1707504824038,-155.43933431,0.00018892,2]
[313634045,1707504824061,-267.500575,0.00018893,2]
[313634046,1707504824085,-1077.06009069,0.00019703,2]
[313634048,1707504826916,-1500.0,0.00019703,2]
[313634050,1707504829550,154.92253873,0.00017743,3]
[313634051,1707504830149,-246.09083901,0.00019703,2]
[313634052,1707504830176,-1253.90916099,0.00019704,2]
[313634061,1707504844083,-284.0,0.00019706,3]
[313634064,1707504847558,154.92253873,0.00017743,3]
[313634070,1707504860213,-1500.0,0.00019706,3]
[313634071,1707504862906,-1500.0,0.00019706,3]
[313634072,1707504864522,-1500.0,0.00019706,3]
[313634074,1707504867552,154.92253873,0.00017998,3]
[313634077,1707504878710,150.90945433,0.00026972,30]
[313634078,1707504878774,150.90945433,0.00026432,120]
[313634080,1707504880557,10246.19460549,0.00017743,2]
[313634081,1707504885552,154.92253873,0.00017998,3]
[313634087,1707504903559,154.92253873,0.00017998,3]
[313634089,1707504923560,154.92253873,0.00016888,3]
[313634090,1707504929344,-389.30296544,0.00020604,20]
[313634095,1707504947570,154.92253873,0.00017998,3]
[313634097,1707504954998,-1000.0,0.00024,24]
[313634102,1707504971608,154.92253873,0.00016885,3]
[313634103,1707504982347,-1000.0,0.00025,25]
[313634104,1707504991576,154.92253873,0.00016885,3]
[313634106,1707505013584,154.92253873,0.00017998,3]
[313634110,1707505031577,154.92253873,0.00016881,3]
[313634114,1707505051578,154.92253873,0.00016881,3]
[313634116,1707505066567,2057.940675,0.00027397,120]
[313634117,1707505069619,154.92253873,0.00016881,3]
[313634119,1707505089583,154.92253873,0.00016876,3]
[313634125,1707505107595,154.92253873,0.00016876,3]
[313634135,1707505123921,-1000.0,0.00026,26]
[313634142,1707505129589,154.92253873,0.00016876,3]
[313634143,1707505130391,-1000.0,0.00027,27]
[313634148,1707505147594,154.92253873,0.00016873,3]
[313634150,1707505167595,154.92253873,0.00016873,3]
[313634153,1707505187437,150.92453773,0.00027243,30]
[313634154,1707505187603,154.92253873,0.00016873,3]
[313634159,1707505205630,154.92253873,0.00017998,3]
[313634161,1707505210475,-155.43933431,0.00018649,2]
[313634162,1707505210498,-212.6780741,0.0001865,2]
[313634163,1707505210521,-3131.88259159,0.0001865,2]
[313634164,1707505225599,154.92253873,0.00016783,3]
[313634165,1707505238613,10323.00753799,0.00016873,2]
[313634167,1707505249615,154.92253873,0.00016783,3]
[313634169,1707505258620,169.17457241,0.00016873,2]
[313634171,1707505267753,154.92253873,0.00016781,3]
[313634173,1707505270488,-334.26591447,0.00018648,5]
[313634174,1707505271277,392.736944,0.00017679,2]
[313634175,1707505275799,2000.0,0.00029,30]
[313634176,1707505280629,8800.2549234,0.00016873,2]
[313634178,1707505285613,24.59828457,0.00016781,3]
[313634179,1707505285639,130.32425416,0.00016781,3]
[313634183,1707505303610,154.92253873,0.00016781,3]
[313634185,1707505307109,-4500.0,0.00018643,2]
[313634194,1707505323614,154.92253873,0.00017998,3]
[313634196,1707505339614,154.92253873,0.00017998,3]
[313634200,1707505357619,154.92253873,0.00016777,3]
[313634202,1707505377618,154.92253873,0.00016774,3]
[313634205,1707505395627,154.92253873,0.00016774,3]
[313634206,1707505413633,154.92253873,0.00016774,3]
[313634210,1707505435645,154.92253873,0.00016774,3]
[313634213,1707505457669,154.92253873,0.00016223,3]
[313634216,1707505479663,154.92253873,0.00016223,3]
[313634217,1707505497648,154.92253873,0.00017998,3]
[313634219,1707505515407,1543.455506,0.00027397,120]
[313634220,1707505515664,154.92253873,0.00017998,3]
[313634221,1707505524299,339.60998423,0.00017924,2]
[313634223,1707505531683,154.92253873,0.00016219,3]
[313634225,1707505551769,154.92253873,0.00016219,3]
[313634226,1707505567665,154.92253873,0.00017998,3]
[313634227,1707505583670,154.92253873,0.00016215,3]
[313634253,1707505601672,154.92253873,0.00016215,3]
[313634256,1707505619669,154.92253873,0.00017998,3]
[313634270,1707505641689,154.92253873,0.00016213,3]
[313634275,1707505667676,154.92253873,0.00016213,3]
[313634279,1707505689703,154.92253873,0.00017998,3]
[313634280,1707505709687,154.92253873,0.00016211,3]
[313634281,1707505717110,-154.92253873,0.00018011,2]
[313634282,1707505717133,-155.43933431,0.00018011,2]
[313634283,1707505717156,-1989.63812696,0.00018011,2]
[313634285,1707505731681,154.92253873,0.00016211,3]
[313634293,1707505735748,196.368472,0.00017018,2]
[313634296,1707505746126,-83953.33130045,0.0001801,2]
[313634297,1707505746147,-10130.33658955,0.00018011,2]
[313634298,1707505749685,154.92253873,0.00017998,3]
[313634299,1707505750179,-6842.17082077,0.00018011,2]
[313634300,1707505750203,-167.55699101,0.00018011,2]
[313634301,1707505750226,-2823.1509297,0.00018012,2]
[313634302,1707505750247,-2720.42581278,0.00018012,2]
[313634303,1707505750267,-2719.07889388,0.00018012,5]
[313634304,1707505750287,-155.11311357,0.00018012,2]
[313634305,1707505750308,-156.35576043,0.00018012,2]
[313634306,1707505750328,-454.47444014,0.00018013,2]
[313634307,1707505750350,-6439.9196237,0.0001803,2]
[313634308,1707505750369,-200.0,0.00018369,2]
[313634309,1707505750389,-200.0,0.00018369,2]
[313634310,1707505750412,-339.60998421,0.00018624,2]
[313634311,1707505750434,-219.64398832,0.00018648,2]
[313634312,1707505750461,-19926.02124891,0.00018766,2]
[313634313,1707505750485,-176.149664,0.00019178,2]
[313634314,1707505750505,-339.60998421,0.00019323,2]
[313634315,1707505750534,-3590.69742808,0.00019732,2]
[313634316,1707505750568,-261.40891906,0.00019998,2]
[313634317,1707505750590,-155.13945124,0.00019998,2]
[313634318,1707505750611,-157.49139385,0.00019998,2]
[313634319,1707505750632,-289.21493152,0.00019998,2]
[313634320,1707505750652,-2110.54162964,0.00019998,2]
[313634321,1707505750672,-200.18695145,0.00019999,2]
[313634322,1707505750693,-614.34856675,0.00019999,2]
[313634323,1707505750713,-43694.21320278,0.0002,2]
[313634324,1707505753316,-30202.66637923,0.0002,2]
[313634325,1707505753336,-4797.94888524,0.0002,2]
[313634326,1707505753356,-339.60998421,0.00020023,2]
[313634327,1707505753376,-200.0,0.00020206,2]
[313634328,1707505753396,-360.0,0.00020206,2]
[313634329,1707505753416,-820.60094681,0.0002032,2]
[313634330,1707505753436,-1858.63739895,0.00020321,2]
[313634331,1707505753456,-20963.39991854,0.00020321,2]
[313634332,1707505753476,-891.11837604,0.00020341,2]
[313634333,1707505753496,-220.05024398,0.00020342,2]
[313634334,1707505753523,-156.63773576,0.00020342,2]
[313634335,1707505753543,-1000.0,0.00020421,3]
[313634336,1707505753642,-1028.09711993,0.00020421,3]
[313634337,1707505753665,-1317.88198227,0.00020522,2]
[313634338,1707505753686,-155.05116031,0.00020591,2]
[313634339,1707505753705,-699.25416012,0.00020603,2]
[313634340,1707505753727,-158.34409851,0.00020603,2]
[313634341,1707505753747,-69617.98724196,0.00020604,2]
[313634348,1707505760103,-454.47444014,0.0001801,2]
[313634349,1707505760124,-9263.29,0.00020594,3]
[313634350,1707505760145,-7008.53886986,0.00020604,2]
[313634351,1707505761188,-79017.09962,0.00020604,2]
[313634352,1707505766120,-154.92253873,0.00018738,3]
[313634353,1707505766140,-4541.34798937,0.00020603,2]
[313634354,1707505766160,-5159.76791452,0.00020604,2]
[313634355,1707505766181,-339.60998421,0.00020722,2]
[313634356,1707505766202,-7719.41,0.00020812,3]
[313634357,1707505766221,-1731.08740228,0.0002082,2]
[313634358,1707505766243,-34493.96117089,0.00020821,2]
[313634359,1707505768149,-6534.0770276,0.00020821,2]
[313634360,1707505768172,-167.06439734,0.00020821,2]
[313634361,1707505768193,-500.0,0.00020822,2]
[313634362,1707505768214,-500.0,0.00020822,2]
[313634363,1707505768234,-500.0,0.00020822,2]
[313634364,1707505768256,-500.0,0.00020822,2]
[313634365,1707505768279,-500.0,0.00020822,2]
[313634366,1707505768301,-600.0,0.00020822,2]
[313634367,1707505768320,-500.0,0.00020822,2]
[313634368,1707505768341,-500.0,0.00020822,2]
[313634369,1707505768363,-500.0,0.00020822,2]
[313634370,1707505768384,-500.0,0.00020822,2]
[313634371,1707505768405,-500.0,0.00020822,2]
[313634372,1707505768426,-390.51859933,0.00020822,2]
[313634373,1707505768446,-500.0,0.00020822,2]
[313634374,1707505768466,-500.0,0.00020822,2]
[313634375,1707505768487,-273.09919927,0.00020822,2]
[313634376,1707505768580,-500.0,0.00020822,2]
[313634377,1707505768602,-500.0,0.00020822,2]
[313634378,1707505768622,-500.0,0.00020822,2]
[313634379,1707505768642,-500.0,0.00020822,2]
[313634380,1707505768662,-353.29911128,0.00020822,2]
[313634381,1707505768683,-500.0,0.00020822,2]
[313634382,1707505768706,-500.0,0.00020822,2]
[313634383,1707505768729,-500.0,0.00020822,2]
[313634384,1707505768752,-500.0,0.00020822,2]
[313634385,1707505768773,-500.0,0.00020822,2]
[313634386,1707505768794,-500.0,0.00020822,2]
[313634387,1707505768828,-650.0,0.00020822,2]
[313634388,1707505768853,-500.0,0.00020822,2]
[313634389,1707505768876,-360.58539016,0.00020822,2]
[313634390,1707505768901,-500.0,0.00020822,2]
[313634391,1707505768924,-500.0,0.00020822,2]
[313634392,1707505768947,-500.0,0.00020822,2]
[313634393,1707505768971,-500.0,0.00020822,2]
[313634394,1707505768997,-500.0,0.00020822,2]
[313634395,1707505769019,-500.0,0.00020822,2]
[313634396,1707505769042,-395.02985127,0.00020822,2]
[313634397,1707505769067,-500.0,0.00020822,2]
[313634398,1707505769090,-500.0,0.00020822,2]
[313634399,1707505769113,-500.0,0.00020822,2]
[313634400,1707505769139,-500.0,0.00020822,2]
[313634401,1707505769161,-500.0,0.00020822,2]
[313634402,1707505769185,-500.0,0.00020822,2]
[313634403,1707505769207,-500.0,0.00020822,2]
[313634404,1707505769230,-500.0,0.00020822,2]
[313634405,1707505769253,-374.62784668,0.00020822,2]
[313634406,1707505769275,-500.0,0.00020822,2]
[313634407,1707505769298,-500.0,0.00020822,2]
[313634408,1707505769320,-500.0,0.00020822,2]
[313634409,1707505769343,-500.0,0.00020822,2]
[313634410,1707505769364,-500.0,0.00020822,2]
[313634411,1707505769385,-500.0,0.00020822,2]
[313634412,1707505769408,-500.0,0.00020822,2]
[313634413,1707505769431,-500.0,0.00020822,2]
[313634414,1707505769454,-500.0,0.00020822,2]
[313634415,1707505769475,-500.0,0.00020822,2]
[313634416,1707505769505,-500.0,0.00020822,2]
[313634417,1707505769527,-500.0,0.00020822,2]
[313634418,1707505769550,-500.0,0.00020822,2]
[313634419,1707505769572,-500.0,0.00020822,2]
[313634420,1707505769594,-500.0,0.00020822,2]
[313634421,1707505769617,-500.0,0.00020822,2]
[313634422,1707505769639,-500.0,0.00020822,2]
[313634423,1707505769662,-500.0,0.00020822,2]
[313634424,1707505769685,-500.0,0.00020822,2]
[313634425,1707505769708,-500.0,0.00020822,2]
[313634426,1707505769729,-500.0,0.00020822,2]
[313634427,1707505769753,-500.0,0.00020822,2]
[313634428,1707505769774,-500.0,0.00020822,2]
[313634429,1707505769796,-500.0,0.00020822,2]
[313634430,1707505769818,-500.0,0.00020822,2]
[313634431,1707505769839,-500.0,0.00020822,2]
[313634432,1707505769860,-500.0,0.00020822,2]
[313634433,1707505769960,-500.0,0.00020822,2]
[313634434,1707505769983,-500.0,0.00020822,2]
[313634435,1707505770005,-500.0,0.00020822,2]
[313634436,1707505770025,-500.0,0.00020822,2]
[313634437,1707505770046,-500.0,0.00020822,2]
[313634438,1707505770067,-500.0,0.00020822,2]
[313634439,1707505770089,-500.0,0.00020822,2]
[313634440,1707505770109,-500.0,0.00020822,2]
[313634441,1707505770129,-500.0,0.00020822,2]
[313634442,1707505770150,-500.0,0.00020822,2]
[313634443,1707505770171,-500.0,0.00020822,2]
[313634444,1707505770191,-500.0,0.00020822,2]
[313634445,1707505770211,-500.0,0.00020822,2]
[313634446,1707505770230,-500.0,0.00020822,2]
[313634447,1707505770252,-500.0,0.00020822,2]
[313634448,1707505770272,-500.0,0.00020822,2]
[313634449,1707505770292,-500.0,0.00020822,2]
[313634450,1707505770311,-470.39908758,0.00020822,2]
[313634451,1707505770330,-500.0,0.00020822,2]
[313634452,1707505770349,-500.0,0.00020822,2]
[313634453,1707505770370,-500.0,0.00020822,2]
[313634454,1707505770389,-500.0,0.00020822,2]
[313634455,1707505770411,-500.0,0.00020822,2]
[313634456,1707505770430,-500.0,0.00020822,2]
[313634457,1707505770451,-500.0,0.00020822,2]
[313634458,1707505770471,-500.0,0.00020822,2]
[313634459,1707505770493,-500.0,0.00020822,2]
[313634460,1707505770513,-500.0,0.00020822,2]
[313634461,1707505770535,-500.0,0.00020822,2]
[313634462,1707505770554,-500.0,0.00020822,2]
[313634463,1707505770574,-500.0,0.00020822,2]
[313634464,1707505770595,-500.0,0.00020822,2]
[313634465,1707505770615,-500.0,0.00020822,2]
[313634466,1707505770635,-500.0,0.00020822,2]
[313634467,1707505770656,-500.0,0.00020822,2]
[313634468,1707505770683,-333.99945061,0.00020822,2]
[313634469,1707505770710,-500.0,0.00020822,2]
[313634470,1707505770732,-500.0,0.00020822,2]
[313634471,1707505770756,-500.0,0.00020822,2]
[313634472,1707505770778,-500.0,0.00020822,2]
[313634473,1707505770799,-500.0,0.00020822,2]
[313634474,1707505770820,-500.0,0.00020822,2]
[313634475,1707505770844,-500.0,0.00020822,2]
[313634476,1707505770866,-500.0,0.00020822,2]
[313634477,1707505770888,-500.0,0.00020822,2]
[313634478,1707505770912,-500.0,0.00020822,2]
[313634479,1707505770934,-500.0,0.00020822,2]
[313634480,1707505770957,-500.0,0.00020822,2]
[313634481,1707505770978,-500.0,0.00020822,2]
[313634482,1707505771001,-200.0,0.00020822,2]
[313634483,1707505771024,-500.0,0.00020822,2]
[313634484,1707505771045,-500.0,0.00020822,2]
[313634485,1707505771066,-500.0,0.00020822,2]
[313634486,1707505771087,-500.0,0.00020822,2]
[313634487,1707505771171,-500.0,0.00020822,2]
[313634488,1707505771193,-500.0,0.00020822,2]
[313634489,1707505771215,-194.56155644,0.00020822,2]
[313634490,1707505771240,-500.0,0.00020822,2]
[313634491,1707505771261,-500.0,0.00020822,2]